lending/lending_fUSD_20240504
["ID","MTS","AMOUNT","RATE_DAILY","PERIOD"]
[325414961,1714855854658,-500.0,0.00041095,30]
[325414962,1714855854668,-1298.67,0.00041095,30]
[325414963,1714855854678,-2091.3,0.00041095,30]
[325414964,1714855854688,-2479.26,0.00041095,30]
[325414965,1714855854698,-1220.84,0.00041095,30]
[325414966,1714855854708,-500.0,0.00041095,30]
[325414967,1714855854717,-3222.22,0.00041095,30]
[325414968,1714855854729,-1140.21,0.00041095,30]
[325414969,1714855854738,-500.0,0.00041095,30]
[325414970,1714855854749,-1151.03,0.00041095,30]
[325414971,1714855854758,-599.84060419,0.00041095,30]
[325414972,1714855854768,-500.0,0.00041095,30]
[325414973,1714855854781,-982.2,0.00041095,30]
[325414974,1714855854791,-500.0,0.00041095,30]
[325414975,1714855854800,-500.0,0.00041095,30]
[325414976,1714855854809,-10450.73,0.00041095,30]
[325414977,1714855854920,-1650.72,0.00041095,30]
[325414978,1714855854931,-886.17,0.00041095,30]
[325414979,1714855854940,-500.0,0.00041095,30]
[325414980,1714855854950,-500.0,0.00041095,30]
[325414981,1714855854960,-5241.9,0.00041095,30]
[325414982,1714855854972,-500.0,0.00041095,30]
[325414983,1714855854981,-1817.64,0.00041095,30]
[325414984,1714855854992,-1252.46,0.00041095,30]
[325414985,1714855855002,-2659.57,0.00041095,30]
[325414986,1714855855011,-2847.23,0.00041095,30]
[325414987,1714855855020,-500.0,0.00041095,30]
[325414988,1714855855030,-1330.38,0.00041095,30]
[325414989,1714855855040,-500.0,0.00041095,30]
[325414990,1714855855051,-500.0,0.00041095,30]
[325414991,1714855855061,-3688.77,0.00041095,30]
[325414992,1714855855071,-1214.19,0.00041095,30]
[325414993,1714855855080,-2745.6,0.00041095,30]
[325414994,1714855855090,-1556.19,0.00041095,30]
[325414995,1714855855099,-1243.81,0.00041095,30]
[325414996,1714855855108,-500.0,0.00041095,30]
[325414997,1714855855117,-500.0,0.00041095,30]
[325414998,1714855855128,-865.46,0.00041095,30]
[325414999,1714855855138,-901.64,0.00041095,30]
[325415000,1714855855149,-500.0,0.00041095,30]
[325415001,1714855855159,-500.0,0.00041095,30]
[325415002,1714855855168,-500.0,0.00041095,30]
[325415003,1714855855177,-500.0,0.00041095,30]
[325415004,1714855855187,-1107.74,0.00041095,30]
[325415005,1714855855196,-1320.38,0.00041095,30]
[325415006,1714855855208,-611.06,0.00041095,30]
[325415007,1714855855218,-5270.35,0.00041095,30]
[325415008,1714855855227,-219.91207462,0.00041095,30]
[325415009,1714855855237,-4551.0,0.00041095,30]
[325415010,1714855855247,-500.0,0.00041095,30]
[325415011,1714855855257,-2052.48,0.00041095,30]
[325415012,1714855855268,-2961.52,0.00041095,30]
[325415013,1714855855278,-1133.43,0.00041095,30]
[325415014,1714855855289,-500.0,0.00041095,30]
[325415015,1714855855300,-55568.39,0.00041095,30]
[325415016,1714855855310,-1584.7,0.00041095,30]
[325415017,1714855855319,-500.0,0.00041095,30]
[325415018,1714855855329,-500.0,0.00041095,30]
[325415019,1714855855338,-500.0,0.00041095,30]
[325415020,1714855855347,-500.0,0.00041095,30]
[325415021,1714855855357,-500.0,0.00041095,30]
[325415022,1714855855366,-500.0,0.00041095,30]
[325415023,1714855855375,-3915.58,0.00041095,30]
[325415024,1714855855385,-1441.76,0.00041095,30]
[325415025,1714855855394,-500.0,0.00041095,30]
[325415026,1714855855403,-1288.48,0.00041095,30]
[325415027,1714855855413,-2544.75,0.00041095,30]
[325415028,1714855855422,-1719.85,0.00041095,30]
[325415029,1714855855431,-500.0,0.00041095,30]
[325415030,1714855855440,-2732.0,0.00041095,30]
[325415031,1714855855450,-949.82,0.00041095,30]
[325415032,1714855855459,-500.0,0.00041095,30]
[325415033,1714855855468,-500.0,0.00041095,30]
[325415034,1714855855477,-500.0,0.00041095,31]
[325415035,1714855855487,-763.21,0.00041095,30]
[325415036,1714855855495,-500.0,0.00041095,32]
[325415037,1714855855505,-349.8735499,0.00041095,30]
[325415038,1714855855514,-500.0,0.00041095,33]
[325415039,1714855855523,-1155.66,0.00041095,30]
[325415040,1714855855532,-500.0,0.00041095,30]
[325415041,1714855855541,-500.03704044,0.00041095,34]
[325415042,1714855855551,-1316.33,0.00041095,30]
[325415043,1714855855560,-2119.6,0.00041095,30]
[325415044,1714855855570,-500.0,0.00041095,30]
[325415045,1714855855579,-500.0,0.00041095,30]
[325415046,1714855855589,-500.0,0.00041095,30]
[325415047,1714855855599,-500.0,0.00041095,30]
[325415048,1714855855607,-500.0,0.00041095,30]
[325415049,1714855855617,-500.0,0.00041095,30]
[325415050,1714855855625,-500.0,0.00041095,30]
[325415051,1714855855634,-1323.0,0.00041095,30]
[325415052,1714855855644,-1795.04,0.00041095,30]
[325415053,1714855855653,-12925.96,0.00041095,30]
[325415054,1714855855662,-500.0,0.00041095,30]
[325415055,1714855855671,-1701.23,0.00041095,30]
[325415056,1714855855681,-500.0,0.00041095,30]
[325415057,1714855855690,-1065.81,0.00041095,30]
[325415058,1714855855699,-500.0,0.00041095,30]
[325415059,1714855855708,-500.0,0.00041095,30]
[325415060,1714855855729,-12493.99,0.00041095,30]
[325415061,1714855855739,-19714.62,0.00041095,30]
[325415062,1714855855748,-500.0,0.00041095,30]
[325415063,1714855855759,-500.0,0.00041095,30]
[325415064,1714855855769,-500.0,0.00041095,30]
[325415065,1714855855779,-1658.64,0.00041095,30]
[325415066,1714855855795,-500.0,0.00041095,30]
[325415067,1714855855804,-636.61,0.00041095,30]
[325415068,1714855855814,-500.0,0.00041095,30]
[325415069,1714855855823,-500.0,0.00041095,30]
[325415070,1714855855832,-19173.42,0.00041095,30]
[325415071,1714855855841,-2713.41,0.00041095,30]
[325415072,1714855855850,-500.0,0.00041095,30]
[325415073,1714855855862,-500.0,0.00041095,30]
[325415074,1714855855871,-500.0,0.00041095,30]
[325415075,1714855855881,-500.0,0.00041095,30]
[325415076,1714855855890,-500.0,0.00041095,30]
[325415077,1714855855900,-1598.96,0.00041095,30]
[325415078,1714855855909,-500.0,0.00041095,30]
[325415079,1714855855919,-500.0,0.00041095,30]
[325415080,1714855855928,-1305.85,0.00041095,30]
[325415081,1714855855938,-5118.31,0.00041095,30]
[325415082,1714855855947,-590.55,0.00041095,30]
[325415083,1714855855956,-977.0,0.00041095,30]
[325415084,1714855855966,-1181.82,0.00041095,30]
[325415085,1714855855975,-500.0,0.00041095,30]
[325415086,1714855855985,-765.66,0.00041095,30]
[325415087,1714855855994,-1942.22,0.00041095,30]
[325415088,1714855856003,-6400.76,0.00041095,30]
[325415089,1714855856013,-500.0,0.00041095,30]
[325415090,1714855856022,-500.0,0.00041095,30]
[325415091,1714855856031,-500.0,0.00041095,30]
[325415092,1714855856040,-500.0,0.00041095,30]
[325415093,1714855856049,-500.0,0.00041095,30]
[325415094,1714855856059,-2514.64,0.00041095,30]
[325415095,1714855856068,-500.0,0.00041095,30]
[325415096,1714855856078,-4389.7,0.00041095,30]
[325415097,1714855856087,-500.0,0.00041095,30]
[325415098,1714855856097,-2319.06,0.00041095,30]
[325415099,1714855856106,-1388.23,0.00041095,30]
[325415100,1714855856115,-436.71639716,0.00041095,30]
[325415101,1714855856125,-500.0,0.00041095,30]
[325415102,1714855856134,-500.0,0.00041095,30]
[325415103,1714855856144,-1536.34,0.00041095,30]
[325415104,1714855856153,-1045.32,0.00041095,30]
[325415105,1714855856163,-1775.69,0.00041095,7]
[325415106,1714855856172,-2884.28,0.00041095,30]
[325415107,1714855856182,-500.0,0.00041095,30]
[325415108,1714855856191,-953.82,0.00041095,30]
[325415109,1714855856200,-500.0,0.00041095,30]
[325415110,1714855856209,-11515.8,0.00041095,30]
[325415111,1714855856219,-1204.33,0.00041095,30]
[325415112,1714855856228,-1476.06,0.00041095,30]
[325415113,1714855856236,-2314.86,0.00041095,30]
[325415114,1714855856246,-500.0,0.00041095,30]
[325415115,1714855856255,-500.0,0.00041095,30]
[325415116,1714855856264,-1331.55,0.00041095,30]
[325415117,1714855856273,-3231.67,0.00041095,30]
[325415118,1714855856282,-500.79995459,0.00041095,30]
[325415119,1714855856291,-841.27,0.00041095,30]
[325415120,1714855856300,-1255.53,0.00041095,30]
[325415121,1714855856310,-500.0,0.00041095,30]
[325415122,1714855856319,-500.0,0.00041095,30]
[325415123,1714855856329,-503.27267874,0.00041095,30]
[325415124,1714855856338,-603.45,0.00041095,30]
[325415125,1714855856348,-500.0,0.00041095,30]
[325415126,1714855856357,-3125.92,0.00041095,30]
[325415127,1714855856367,-500.0,0.00041095,30]
[325415128,1714855856377,-500.0,0.00041095,30]
[325415129,1714855856387,-1109.44,0.00041095,30]
[325415130,1714855856396,-4268.59,0.00041095,30]
[325415131,1714855856405,-1164.9,0.00041095,30]
[325415132,1714855856414,-7128.99,0.00041095,30]
[325415133,1714855856423,-1515.31,0.00041095,30]
[325415134,1714855856433,-3430.44,0.00041095,30]
[325415135,1714855856443,-2385.06,0.00041095,30]
[325415136,1714855856452,-500.0,0.00041095,30]
[325415137,1714855856462,-1071.24,0.00041095,30]
[325415138,1714855856471,-500.0,0.00041095,30]
[325415139,1714855856481,-500.0,0.00041095,30]
[325415140,1714855856490,-7760.31,0.00041095,30]
[325415141,1714855856499,-1129.61,0.00041095,30]
[325415142,1714855856509,-500.0,0.00041095,30]
[325415143,1714855856518,-1194.12,0.00041095,30]
[325415144,1714855856528,-698.92,0.00041095,30]
[325415145,1714855856537,-500.0,0.00041095,30]
[325415146,1714855856546,-566.5,0.00041095,30]
[325415147,1714855856555,-500.0,0.00041095,30]
[325415148,1714855856565,-1492.52,0.00041095,30]
[325415149,1714855856574,-500.0,0.00041095,30]
[325415150,1714855856584,-4117.05,0.00041095,30]
[325415151,1714855856593,-291.10839908,0.00041095,30]
[325415152,1714855856602,-1117.99,0.00041095,30]
[325415153,1714855856611,-500.0,0.00041095,30]
[325415154,1714855856621,-500.0,0.00041095,30]
[325415155,1714855856630,-1002.11,0.00041095,30]
[325415156,1714855856639,-500.0,0.00041095,30]
[325415157,1714855856648,-500.0,0.00041095,30]
[325415158,1714855856658,-3386.66,0.00041095,30]
[325415159,1714855856667,-500.0,0.00041095,30]
[325415160,1714855856677,-1584.07,0.00041095,30]
[325415161,1714855856687,-7451.96,0.00041095,30]
[325415162,1714855856696,-500.0,0.00041095,30]
[325415163,1714855856706,-500.0,0.00041095,30]
[325415164,1714855856715,-7848.85,0.00041095,30]
[325415165,1714855856724,-500.0,0.00041095,30]
[325415166,1714855856733,-7848.85,0.00041095,31]
[325415167,1714855856743,-7848.85,0.00041095,32]
[325415168,1714855856752,-2053.42,0.00041095,30]
[325415169,1714855856762,-7848.85,0.00041095,33]
[325415170,1714855856772,-7848.85,0.00041095,34]
[325415171,1714855856788,-4946.12,0.00041095,30]
[325415172,1714855856800,-7848.85,0.00041095,35]
[325415173,1714855856814,-1611.33,0.00041095,30]
[325415174,1714855856824,-169.7130042,0.00041095,30]
[325415175,1714855856835,-500.0,0.00041095,30]
[325415176,1714855856844,-500.0,0.00041095,30]
[325415177,1714855856854,-859.28,0.00041095,30]
[325415178,1714855856864,-3208.9,0.00041095,30]
[325415179,1714855856874,-4113.02,0.00041095,30]
[325415180,1714855856884,-500.0,0.00041095,30]
[325415181,1714855856893,-500.0,0.00041095,30]
[325415182,1714855856903,-4992.02,0.00041095,30]
[325415183,1714855856912,-500.0,0.00041095,30]
[325415184,1714855856921,-500.0,0.00041095,30]
[325415185,1714855856931,-500.0,0.00041095,30]
[325415186,1714855856940,-652.52,0.00041095,30]
[325415187,1714855856949,-500.0,0.00041095,30]
[325415188,1714855856959,-500.0,0.00041095,30]
[325415189,1714855856968,-1197.0,0.00041095,30]
[325415190,1714855856977,-1246.64,0.00041095,30]
[325415191,1714855856987,-500.0,0.00041095,30]
[325415192,1714855856996,-3606.74,0.00041095,30]
[325415193,1714855857005,-500.0,0.00041095,30]
[325415194,1714855857014,-500.0,0.00041095,30]
[325415195,1714855857024,-500.0,0.00041095,30]
[325415196,1714855857033,-3386.75,0.00041095,30]
[325415197,1714855857043,-1866.43,0.00041095,30]
[325415198,1714855857052,-5697.42,0.00041095,21]
[325415199,1714855857062,-2052.96,0.00041095,30]
[325415200,1714855857071,-500.0,0.00041095,30]
[325415201,1714855857081,-1062.76,0.00041095,30]
[325415202,1714855857090,-1524.83,0.00041095,30]
[325415203,1714855857100,-1028.15,0.00041095,30]
[325415204,1714855857109,-815.92,0.00041095,30]
[325415205,1714855857118,-1240.97,0.00041095,30]
[325415206,1714855857127,-500.0,0.00041095,30]
[325415207,1714855857137,-500.0,0.00041095,30]
[325415208,1714855857146,-1256.33,0.00041095,30]
[325415209,1714855857156,-500.0,0.00041095,30]
[325415210,1714855857165,-500.0,0.00041095,30]
[325415211,1714855857175,-500.0,0.00041095,30]
[325415212,1714855857185,-500.0,0.00041095,30]
[325415213,1714855857194,-500.0,0.00041095,30]
[325415214,1714855857204,-2786.82,0.00041095,30]
[325415215,1714855857213,-8440.38,0.00041095,30]
[325415216,1714855857222,-500.0,0.00041095,30]
[325415217,1714855857232,-769.26,0.00041095,30]
[325415218,1714855857242,-3990.44,0.00041095,30]
[325415219,1714855857251,-3238.56,0.00041095,30]
[325415220,1714855857260,-500.0,0.00041095,30]
[325415221,1714855857269,-500.0,0.00041095,30]
[325415222,1714855857279,-500.0,0.00041095,30]
[325415223,1714855857288,-500.0,0.00041095,30]
[325415224,1714855857298,-2205.18,0.00041095,30]
[325415225,1714855857307,-150.0,0.00041095,30]
[325415226,1714855857316,-871.65,0.00041095,30]
[325415227,1714855857326,-500.0,0.00041095,30]
[325415228,1714855857335,-869.16,0.00041095,30]
[325415229,1714855857344,-12300.23,0.00041095,30]
[325415230,1714855857354,-500.0,0.00041095,30]
[325415231,1714855857363,-1398.47,0.00041095,30]
[325415232,1714855857372,-500.0,0.00041095,30]
[325415233,1714855857381,-500.0,0.00041095,30]
[325415234,1714855857391,-503.33810169,0.00041095,30]
[325415235,1714855857401,-500.0,0.00041095,30]
[325415236,1714855857410,-999.72,0.00041095,30]
[325415237,1714855857419,-4392.35,0.00041095,30]
[325415238,1714855857428,-4752.72,0.00041095,30]
[325415239,1714855857438,-1131.29,0.00041095,30]
[325415240,1714855857447,-500.0,0.00041095,30]
[325415241,1714855857456,-2579.69,0.00041095,30]
[325415242,1714855857466,-500.0,0.00041095,30]
[325415243,1714855857475,-659.87,0.00041095,30]
[325415244,1714855857485,-1383.39,0.00041095,30]
[325415245,1714855857494,-1494.52,0.00041095,30]
[325415246,1714855857503,-1202.43,0.00041095,30]
[325415247,1714855857513,-1000.0,0.00041095,2]
[325415248,1714855857522,-1928.43,0.00041095,2]
[325415249,1714855857532,-523.60547189,0.00041095,30]
[325415250,1714855857543,-3758.79,0.00041095,30]
[325415251,1714855857552,-2709.71,0.00041095,30]
[325415252,1714855857562,-500.0,0.00041095,30]
[325415253,1714855857572,-500.0,0.00041095,30]
[325415254,1714855857581,-500.0,0.00041095,30]
[325415255,1714855857590,-2910.42,0.00041095,30]
[325415256,1714855857599,-10273.49,0.00041095,30]
[325415257,1714855857609,-1504.05,0.00041095,30]
[325415258,1714855857618,-857.79,0.00041095,30]
[325415259,1714855857627,-500.0,0.00041095,30]
[325415260,1714855857637,-1683.91,0.00041095,30]
[325415261,1714855857646,-8622.71,0.00041095,30]
[325415262,1714855857655,-500.0,0.00041095,30]
[325415263,1714855857664,-949.19,0.00041095,30]
[325415264,1714855857674,-1273.72,0.00041095,30]
[325415265,1714855857684,-500.0,0.00041095,30]
[325415266,1714855857693,-500.0,0.00041095,30]
[325415267,1714855857702,-1903.77,0.00041095,30]
[325415268,1714855857712,-594.87,0.00041095,30]
[325415269,1714855857722,-500.0,0.00041095,30]
[325415270,1714855857731,-500.0,0.00041095,30]
[325415271,1714855857741,-2448.72,0.00041095,30]
[325415272,1714855857750,-507.1971193,0.00041095,30]
[325415273,1714855857760,-533.7,0.00041095,30]
[325415274,1714855857769,-500.0,0.00041095,30]
[325415275,1714855857780,-500.0,0.00041095,31]
[325415276,1714855857796,-656.94,0.00041095,30]
[325415277,1714855857806,-500.0,0.00041095,32]
[325415278,1714855857816,-2209.04,0.00041095,30]
[325415279,1714855857832,-500.0,0.00041095,30]
[325415280,1714855857845,-500.0,0.00041095,33]
[325415281,1714855857855,-500.0,0.00041095,34]
[325415282,1714855857865,-500.0,0.00041095,35]
[325415283,1714855857875,-1142.4,0.00041095,30]
[325415284,1714855857884,-500.0,0.00041095,36]
[325415285,1714855857894,-500.0,0.00041095,30]
[325415286,1714855857905,-500.0,0.00041095,37]
[325415287,1714855857916,-3628.69,0.00041095,30]
[325415288,1714855857926,-555.83,0.00041095,30]
[325415289,1714855857937,-500.0,0.00041095,30]
[325415290,1714855857947,-1672.2,0.00041095,30]
[325415291,1714855857959,-500.0,0.00041095,30]
[325415292,1714855857969,-500.0,0.00041095,30]
[325415293,1714855857981,-3391.67,0.00041095,30]
[325415294,1714855857992,-44599.12,0.00041095,30]
[325415295,1714855858003,-181.61964013,0.00041095,2]
[325415296,1714855858012,-1040.65,0.00041095,30]
[325415297,1714855858023,-500.0,0.00041095,30]
[325415298,1714855858034,-600.24,0.00041095,30]
[325415299,1714855858044,-521.93,0.00041095,30]
[325415300,1714855858054,-605.08089706,0.00041095,2]
[325415301,1714855858064,-500.0,0.00041095,30]
[325415302,1714855858074,-1779.39,0.00041095,30]
[325415303,1714855858084,-4515.57,0.00041095,30]
[325415304,1714855858096,-500.0,0.00041095,30]
[325415305,1714855858108,-500.0,0.00041095,30]
[325415306,1714855858120,-500.0,0.00041095,30]
[325415307,1714855858134,-500.0,0.00041095,30]
[325415308,1714855858144,-500.0,0.00041095,30]
[325415309,1714855858154,-500.0,0.00041095,30]
[325415310,1714855858164,-2521.19,0.00041095,30]
[325415311,1714855858173,-1128.62,0.00041095,30]
[325415312,1714855858185,-500.0,0.00041095,30]
[325415313,1714855858195,-1303.18,0.00041095,30]
[325415314,1714855858206,-1112.91,0.00041095,30]
[325415315,1714855858218,-802.89,0.00041095,30]
[325415316,1714855858228,-1238.4,0.00041095,2]
[325415317,1714855858240,-3140.42,0.00041095,30]
[325415318,1714855858250,-1196.48,0.00041095,30]
[325415319,1714855858261,-500.0,0.00041095,30]
[325415320,1714855858271,-500.0,0.00041095,2]
[325415321,1714855858281,-787.47,0.00041095,30]
[325415322,1714855858292,-1019.55,0.00041095,30]
[325415323,1714855858302,-809.22,0.00041095,30]
[325415324,1714855858312,-500.0,0.00041095,30]
[325415325,1714855858322,-17438.11,0.00041095,30]
[325415326,1714855858332,-500.0,0.00041095,30]
[325415327,1714855858343,-500.0,0.00041095,30]
[325415328,1714855858354,-500.0,0.00041095,30]
[325415329,1714855858365,-967.06915176,0.00041095,6]
[325415330,1714855858375,-157.0,0.00041096,2]
[325415331,1714855858387,-150.0,0.00041096,2]
[325415332,1714855858397,-150.0,0.000411,10]
[325415333,1714855858408,-181.2,0.000411,30]
[325415334,1714855858418,-268.2,0.00041203,30]
[325415335,1714855858428,-2000.0,0.00041232,29]
[325415336,1714855858440,-169.68668503,0.00041269,15]
[325415337,1714855858451,-6460.88696813,0.00041269,2]
[325415338,1714855858463,-200.0,0.00041309,20]
[325415339,1714855858473,-150.0,0.00041342,30]
[325415340,1714855858484,-150.0,0.00041342,30]
[325415341,1714855858494,-176.33974736,0.00041342,30]
[325415342,1714855858505,-154.05209076,0.00041342,30]
[325415343,1714855858515,-7848.85,0.00041366,36]
[325415344,1714855858525,-1767.77861292,0.00041367,4]
[325415345,1714855858535,-200.0,0.00041367,2]
[325415346,1714855858546,-388.79811563,0.00041367,2]
[325415347,1714855858556,-7848.85,0.00041368,37]
[325415348,1714855858566,-7848.85,0.00041368,38]
[325415349,1714855858576,-7848.85,0.00041368,39]
[325415350,1714855858586,-628.98616976,0.00041368,7]
[325415351,1714855858596,-628.98616976,0.00041368,7]
[325415352,1714855858606,-500.0,0.00041368,38]
[325415353,1714855858616,-500.0,0.00041368,39]
[325415354,1714855858627,-500.0,0.00041368,40]
[325415355,1714855858637,-500.0,0.00041368,41]
[325415356,1714855858647,-500.0,0.00041368,42]
[325415357,1714855858657,-500.0,0.00041369,31]
[325415358,1714855858666,-500.0,0.00041369,31]
[325415359,1714855858676,-500.0,0.00041369,31]
[325415360,1714855858687,-500.0,0.00041369,31]
[325415361,1714855858697,-500.0,0.00041369,31]
[325415362,1714855858707,-500.0,0.00041369,31]
[325415363,1714855858716,-1518.47,0.00041369,31]
[325415364,1714855858726,-500.0,0.00041369,31]
[325415365,1714855858736,-502.69825252,0.00041369,31]
[325415366,1714855858746,-500.0,0.00041369,31]
[325415367,1714855858756,-500.0,0.00041369,31]
[325415368,1714855858766,-500.0,0.00041369,31]
[325415369,1714855858776,-500.0,0.00041369,31]
[325415370,1714855858788,-300.0,0.00041369,7]
[325415371,1714855858799,-500.0,0.00041369,31]
[325415372,1714855858808,-500.0,0.00041369,31]
[325415373,1714855858819,-950.11,0.00041369,31]
[325415374,1714855858830,-500.0,0.00041369,31]
[325415375,1714855858840,-500.0,0.00041369,31]
[325415376,1714855858851,-500.0,0.00041369,31]
[325415377,1714855858863,-500.0,0.00041369,31]
[325415378,1714855858873,-500.0,0.00041369,31]
[325415379,1714855858882,-500.0,0.00041369,31]
[325415380,1714855858893,-500.0,0.00041369,31]
[325415381,1714855858903,-551.40858566,0.00041369,31]
[325415382,1714855858914,-585.45,0.00041369,31]
[325415383,1714855858924,-953.1,0.00041369,31]
[325415384,1714855858934,-507.33924825,0.00041369,31]
[325415385,1714855858944,-710.84,0.00041369,31]
[325415386,1714855858955,-500.0,0.00041369,31]
[325415387,1714855858965,-1442.29,0.00041369,31]
[325415388,1714855858975,-1125.31,0.00041369,31]
[325415389,1714855858985,-500.0,0.00041369,31]
[325415390,1714855858995,-500.0,0.00041369,31]
[325415391,1714855859005,-500.0,0.00041369,31]
[325415392,1714855859016,-500.0,0.00041369,31]
[325415393,1714855859026,-509.29834537,0.00041369,31]
[325415394,1714855859036,-1057.57,0.00041369,31]
[325415395,1714855859046,-849.89,0.00041369,31]
[325415396,1714855859056,-500.0,0.00041369,31]
[325415397,1714855859066,-650.15,0.00041369,31]
[325415398,1714855859076,-500.0,0.00041369,31]
[325415399,1714855859086,-500.0,0.00041369,31]
[325415400,1714855859096,-500.0,0.00041369,31]
[325415401,1714855859106,-500.0,0.00041369,31]
[325415402,1714855859117,-500.0,0.00041369,31]
[325415403,1714855859127,-500.0,0.00041369,31]
[325415404,1714855859137,-500.0,0.00041369,31]
[325415405,1714855859147,-500.0,0.00041369,31]
[325415406,1714855859156,-500.0,0.00041369,31]
[325415407,1714855859167,-500.0,0.00041369,31]
[325415408,1714855859177,-500.0,0.00041369,31]
[325415409,1714855859188,-803.49,0.00041369,31]
[325415410,1714855859198,-500.0,0.00041369,31]
[325415411,1714855859208,-500.0,0.00041369,31]
[325415412,1714855859219,-798.73,0.00041369,31]
[325415413,1714855859228,-500.0,0.00041369,31]
[325415414,1714855859239,-533.10085316,0.00041369,31]
[325415415,1714855859249,-1190.34,0.00041369,31]
[325415416,1714855859259,-500.0,0.00041369,31]
[325415417,1714855859271,-508.47592462,0.00041369,31]
[325415418,1714855859281,-500.0,0.00041369,31]
[325415419,1714855859291,-500.0,0.00041369,31]
[325415420,1714855859302,-500.0,0.00041369,31]
[325415421,1714855859312,-512.95,0.00041369,31]
[325415422,1714855859322,-500.0,0.00041369,31]
[325415423,1714855859333,-500.0,0.00041369,31]
[325415424,1714855859343,-611.86,0.00041369,31]
[325415425,1714855859353,-1323.32,0.00041369,31]
[325415426,1714855859364,-500.0,0.00041369,31]
[325415427,1714855859375,-500.0,0.00041369,31]
[325415428,1714855859385,-703.61,0.00041369,31]
[325415429,1714855859396,-551.65526185,0.00041369,31]
[325415430,1714855859407,-500.0,0.00041369,31]
[325415431,1714855859416,-500.0,0.00041369,31]
[325415432,1714855859426,-500.0,0.00041369,31]
[325415433,1714855859437,-605.27,0.00041369,31]
[325415434,1714855859447,-938.76,0.00041369,31]
[325415435,1714855859457,-500.0,0.00041369,31]
[325415436,1714855859468,-594.9,0.00041369,31]
[325415437,1714855859478,-789.23,0.00041369,31]
[325415438,1714855859488,-500.0,0.00041369,31]
[325415439,1714855859498,-500.0,0.00041369,31]
[325415440,1714855859509,-908.72,0.00041369,31]
[325415441,1714855859519,-555.95,0.00041369,31]
[325415442,1714855859529,-500.0,0.00041369,31]
[325415443,1714855859539,-500.0,0.00041369,31]
[325415444,1714855859550,-1177.95,0.00041369,31]
[325415445,1714855859560,-549.37,0.00041369,31]
[325415446,1714855859570,-500.0,0.00041369,31]
[325415447,1714855859580,-500.0,0.00041369,31]
[325415448,1714855859591,-500.0,0.00041369,2]
[325415449,1714855859601,-683.19,0.00041369,31]
[325415450,1714855859612,-1106.07,0.00041369,31]
[325415451,1714855859623,-500.0,0.00041369,31]
[325415452,1714855859640,-1012.53,0.00041369,31]
[325415453,1714855859651,-283.88441065,0.00041369,31]
[325415454,1714855859661,-763.07,0.00041369,31]
[325415455,1714855859671,-280.09438758,0.00041369,31]
[325415456,1714855859682,-1204.34,0.00041369,31]
[325415457,1714855859692,-500.0,0.00041369,31]
[325415458,1714855859702,-1221.18,0.00041369,31]
[325415459,1714855859712,-500.0,0.00041369,31]
[325415460,1714855859722,-875.68,0.00041369,31]